bitfinex-derivatives/quotes_SOLF0:USTF0_20220104
["timestamp","ask_amount","ask_price","bid_price","bid_amount"]
[1641271781238,6.78,166.85,166.8,6.0]
[1641271782240,2.79936953,166.84,166.8,6.0]
[1641271784544,5.79936953,166.84,166.8,6.0]
[1641271784844,3.0,166.84,166.8,6.0]
[1641271785444,3.0,166.83,166.8,6.0]
[1641271785645,2.8261529,166.83,166.8,6.0]
[1641271787548,12.67426191,166.82,166.8,6.0]
[1641271789754,12.67426191,166.81,166.8,6.0]
[1641271790051,18.59326191,166.81,166.8,6.0]
[1641271790451,21.41941481,166.81,166.8,6.0]
[1641271791952,8.7451529,166.81,166.8,6.0]
[1641271792953,21.41941481,166.81,166.8,6.0]
[1641271793453,24.41941481,166.81,166.8,6.0]
[1641271793653,21.41941481,166.81,166.8,6.0]
[1641271793853,24.41941481,166.81,166.8,6.0]
[1641271794855,21.41941481,166.81,166.8,6.0]
[1641271795455,24.41941481,166.81,166.8,6.0]
[1641271795754,24.41941481,166.81,166.75,27.66479]
[1641271795755,30.41372022,166.81,166.73,12.67426191]
[1641271795957,27.66479,166.78,166.71,12.67426191]
[1641271796956,15.52570534,166.77,166.71,1.39196245]
[1641271797156,22.05870534,166.77,166.71,1.39196245]
[1641271797357,3.0,166.75,166.71,1.39196245]
[1641271797556,25.05870534,166.77,166.71,1.39196245]
[1641271797761,2.8261529,166.76,166.71,1.39196245]
[1641271798358,15.52570534,166.76,166.71,1.39196245]
[1641271800059,15.52570534,166.76,166.72,27.66479]
[1641271800861,12.69955244,166.78,166.73,1.39196245]
[1641271802463,2.8261529,166.8,166.72,27.66479]
[1641271805164,2.8261529,166.8,166.72,33.66479]
[1641271806163,5.8261529,166.8,166.72,6.0]
[1641271806964,4.20873261,166.77,166.72,6.0]
[1641271807567,4.20873261,166.76,166.72,6.0]
[1641271807969,8.82873261,166.76,166.72,6.0]
[1641271808365,4.62,166.76,166.72,6.0]
[1641271808966,4.20873261,166.73,166.72,10.20873261]
[1641271809768,3.261e-05,166.73,166.72,10.20873261]
[1641271810172,3.261e-05,166.73,166.72,37.87352261]
[1641271810374,27.66479,166.81,166.72,33.66479]
[1641271810570,12.69991486,166.77,166.72,38.05672829]
[1641271810770,12.69991486,166.77,166.72,35.05672829]
[1641271811072,61.50480893,166.81,166.73,1.39193829]
[1641271811073,12.69991486,166.79,166.73,1.39193829]
[1641271822180,12.69991486,166.78,166.73,1.39193829]
[1641271822380,16.80391486,166.78,166.73,1.39193829]
[1641271822882,16.80391486,166.78,166.72,6.0]
[1641271823282,12.69991486,166.76,166.72,6.0]
[1641271824181,15.50203311,166.77,166.72,6.0]
[1641271824381,43.16682311,166.77,166.72,6.0]
[1641271824780,12.69991486,166.76,166.72,6.0]
[1641271825782,15.50203311,166.76,166.72,6.0]
[1641271827985,3.0,166.75,166.72,6.0]
[1641271828485,15.50203311,166.76,166.72,6.0]
[1641271828685,2.80211825,166.74,166.72,6.0]
[1641271828885,6.90611825,166.74,166.72,6.0]
[1641271829285,4.104,166.74,166.72,6.0]
[1641271833997,12.69991486,166.76,166.72,6.0]
[1641271834203,12.69991486,166.75,166.72,6.0]
[1641271836500,15.69991486,166.75,166.72,6.0]
[1641271838501,3.0,166.73,166.72,6.0]
[1641271838701,7.251,166.73,166.72,0.0001]
[1641271839301,19.95091486,166.73,166.72,0.0001]
[1641271840302,7.251,166.73,166.72,0.0001]
[1641271842707,19.95091486,166.73,166.72,0.0001]
[1641271843307,19.95091486,166.73,166.66,27.66479]
[1641271843506,3.0,166.71,166.63,5.99412576]
[1641271843708,68.5547,166.72,166.63,5.99412576]
[1641271844308,65.5547,166.72,166.63,5.99412576]
[1641271844610,27.66479,166.68,166.63,5.99412576]
[1641271844807,33.64579,166.68,166.63,5.99412576]
[1641271845411,26.8703847,166.68,166.63,5.99412576]
[1641271847412,26.8703847,166.68,166.62,59.8044]
[1641271847611,2.85652668,166.67,166.62,59.8044]
[1641271848315,2.85652668,166.67,166.58,18.67000493]
[1641271848513,27.66479,166.65,166.59,61.581]
[1641271849115,27.66479,166.65,166.6,1.42472682]
[1641271850615,27.66479,166.62,166.57,12.67426191]
[1641271850816,33.39179,166.62,166.57,12.67426191]
[1641271851015,33.39179,166.62,166.54,12.67426191]
[1641271851615,33.39179,166.62,166.54,19.25346387]
[1641271852215,5.727,166.62,166.54,19.25346387]
[1641271852514,6.626,166.64,166.57,5.9962823]
[1641271853015,3.0,166.63,166.56,12.67426191]
[1641271853215,19.28770749,166.64,166.56,12.67426191]
[1641271853520,22.28770749,166.64,166.56,12.67426191]
[1641271853718,12.66170749,166.62,166.54,19.25346387]
[1641271854016,12.66170749,166.62,166.54,83.16706387]
[1641271854315,3.0,166.61,166.54,83.16706387]
[1641271854516,27.66479,166.61,166.55,19.25346387]
[1641271855016,3.0,166.59,166.55,19.25346387]
[1641271855216,7.857,166.59,166.55,12.67426191]
[1641271855415,3.0,166.57,166.54,12.67426191]
[1641271855816,4.857,166.59,166.54,12.67426191]
[1641271856015,7.857,166.59,166.54,12.67426191]
[1641271856219,4.857,166.59,166.54,12.67426191]
[1641271856515,3.0,166.57,166.5,12.67426191]
[1641271856715,27.66479,166.55,166.5,12.67426191]
[1641271856915,27.66479,166.55,166.47,64.3823]
[1641271856916,31.98679,166.55,166.49,12.67426191]
[1641271857318,31.98679,166.55,166.54,6.0]
[1641271858118,34.98679,166.55,166.54,6.0]
[1641271858519,31.98679,166.55,166.54,6.0]
[1641271862627,59.65158,166.55,166.54,6.0]
[1641271863129,62.65158,166.55,166.54,6.0]
[1641271863428,66.65158,166.55,166.37,12.67426191]
[1641271863628,3.0,166.49,166.37,12.67426191]
[1641271863830,4.25,166.49,166.37,12.67426191]
[1641271864529,3.0,166.46,166.37,12.67426191]
[1641271864730,27.66479,166.41,166.32,27.74479]
[1641271864931,31.84779,166.41,166.32,27.74479]
[1641271867430,4.183,166.41,166.32,27.74479]
[1641271868633,4.183,166.41,166.32,33.74479]
[1641271868838,4.183,166.41,166.35,12.67426191]
[1641271870033,4.24100651,166.4,166.36,12.67426191]
[1641271870834,4.24100651,166.41,166.37,12.67426191]
[1641271871735,4.24100651,166.41,166.36,12.67426191]
[1641271871937,12.66170749,166.44,166.36,12.67426191]
[1641271872137,33.84001893,166.48,166.36,20.64326191]
[1641271872338,33.84001893,166.48,166.36,4.969]
[1641271872538,33.84001893,166.51,166.36,4.969]
[1641271872739,33.84001893,166.51,166.46,27.66479]
[1641271873639,16.52484208,166.54,166.39,36.84001893]
[1641271873840,22.73184208,166.54,166.39,36.84001893]
[1641271874141,22.73184208,166.54,166.41,3.0]
[1641271874738,16.72890064,166.54,166.44,27.66479]
[1641271874938,10.52190064,166.54,166.44,27.66479]
[1641271875140,44.36191957,166.54,166.44,27.66479]
[1641271875539,47.36191957,166.54,166.4,63.3021]
[1641271875741,118.31031957,166.54,166.4,63.3021]
[1641271875943,33.84001893,166.52,166.4,63.3021]
[1641271876642,27.66479,166.46,166.4,63.3021]
[1641271876841,32.21479,166.46,166.38,3.0]
[1641271877844,32.21479,166.46,166.38,9.43932559]
[1641271878041,32.21479,166.46,166.39,3.0]
[1641271878241,32.21479,166.46,166.42,3.0]
[1641271878442,4.55,166.46,166.42,3.0]
[1641271879046,27.66479,166.49,166.42,3.0]
[1641271879644,27.66479,166.49,166.42,9.43932559]
[1641271881245,27.66479,166.49,166.42,6.43932559]
[1641271882048,27.66479,166.49,166.4,3.0]
[1641271882249,32.64979,166.49,166.4,3.0]
[1641271882449,32.64979,166.49,166.41,3.0]
[1641271883248,32.64979,166.49,166.4,3.0]
[1641271884047,32.64979,166.49,166.41,3.0]
[1641271884250,32.64979,166.49,166.42,3.0]
[1641271884449,32.64979,166.49,166.4,36.84001893]
[1641271885148,32.64979,166.49,166.4,33.84001893]
[1641271886049,32.64979,166.49,166.39,36.84001893]
[1641271886649,32.64979,166.49,166.38,6.84446539]
[1641271886650,27.66479,166.46,166.4,3.0]
[1641271887051,27.66479,166.46,166.41,3.0]
[1641271887453,32.64979,166.49,166.41,3.0]
[1641271887651,32.64979,166.49,166.42,3.0]
[1641271887951,4.985,166.49,166.42,3.0]
[1641271888153,70.9484,166.54,166.42,3.0]
[1641271888651,5.546,166.54,166.48,27.66479]
[1641271888852,33.84001893,166.56,166.48,33.13479]
[1641271889253,27.66479,166.58,166.48,33.13479]
[1641271889952,27.66479,166.58,166.48,27.66479]
[1641271890153,27.66479,166.58,166.49,6.84446539]
[1641271890854,27.66479,166.55,166.49,6.84446539]
[1641271891054,32.53979,166.55,166.49,6.84446539]
[1641271891254,32.53979,166.55,166.48,1.50711898]
[1641271892556,32.53979,166.55,166.47,8.35158437]
[1641271892756,27.66479,166.51,166.47,8.35158437]
[1641271892956,31.96879,166.51,166.47,8.35158437]
[1641271893657,31.96879,166.51,166.47,1.50711898]
[1641271894357,31.96879,166.51,166.44,8.35149655]
[1641271895059,31.96879,166.51,166.47,6.0]
[1641271896157,31.96879,166.51,166.48,1.50711898]
[1641271898359,4.304,166.51,166.48,1.50711898]
[1641271898559,32.53979,166.55,166.48,1.50711898]
[1641271899361,12.84115611,166.54,166.48,1.50711898]
[1641271901363,6.703,166.55,166.48,1.50711898]
[1641271902563,2.7314981,166.54,166.48,1.50711898]
[1641271905570,15.44539266,166.54,166.48,1.50711898]
[1641271907375,2.7314981,166.54,166.48,1.50711898]
[1641271908876,15.44539266,166.54,166.48,1.50711898]
[1641271909275,15.44539266,166.54,166.47,6.0]
[1641271909477,12.71389456,166.52,166.47,6.0]
[1641271910079,12.71389456,166.53,166.48,1.5069934]
[1641271910776,15.44539266,166.54,166.48,1.5069934]
[1641271912488,2.7314981,166.54,166.48,1.5069934]
[1641271914783,15.44539266,166.54,166.48,1.5069934]
[1641271915289,2.7314981,166.54,166.48,1.5069934]
[1641271916183,2.7314981,166.54,166.47,6.0]
[1641271916384,12.71389456,166.53,166.47,6.0]
[1641271916784,12.71389456,166.53,166.49,27.66479]
[1641271917186,15.44539266,166.54,166.49,27.66479]
[1641271917886,2.7314981,166.54,166.49,27.66479]
[1641271919888,15.44539266,166.54,166.5,1.50708552]
[1641271920392,6.703,166.55,166.53,3.0]
[1641271920590,33.84001893,166.58,166.52,3.0]
[1641271921490,9.73459097,166.61,166.51,3.0]
[1641271921991,9.73459097,166.61,166.57,3.0]
[1641271922591,9.73459097,166.61,166.58,3.0]
[1641271922790,43.5746099,166.66,166.58,3.0]
[1641271922992,43.5746099,166.66,166.6,27.66479]
[1641271923490,9.73459097,166.66,166.6,27.66479]
[1641271923692,9.73459097,166.66,166.57,27.66479]
[1641271924792,33.84001893,166.64,166.57,27.66479]
[1641271925194,33.84001893,166.64,166.57,33.66479]
[1641271925495,33.84001893,166.65,166.57,33.66479]
[1641271925693,33.84001893,166.65,166.57,6.0]
[1641271926495,33.84001893,166.63,166.57,6.0]
[1641271926895,27.66479,166.62,166.57,6.0]
[1641271927495,34.06379,166.62,166.57,6.0]
[1641271927696,9.73459097,166.61,166.57,6.0]
[1641271928597,33.84001893,166.6,166.57,6.0]
[1641271928897,27.66479,166.58,166.57,6.0]
[1641271929101,34.30779,166.58,166.57,6.0]
[1641271930100,44.04238097,166.58,166.57,6.0]
[1641271933306,37.39938097,166.58,166.57,6.0]
[1641271933503,9.73459097,166.58,166.57,6.0]
[1641271933703,33.84001893,166.59,166.57,6.0]
[1641271933903,61.50480893,166.62,166.57,6.0]
[1641271934805,9.73353745,166.61,166.57,6.0]
[1641271935605,14.86053745,166.61,166.57,6.0]
[1641271936107,5.127,166.61,166.57,6.0]
[1641271936905,27.66479,166.59,166.57,6.0]
[1641271937506,4.21623658,166.58,166.57,6.0]
[1641271940104,5.127,166.61,166.57,6.0]
[1641271940305,14.81323889,166.61,166.57,6.0]
[1641271940905,5.127,166.61,166.57,6.0]
[1641271941107,27.66479,166.62,166.57,6.0]
[1641271941607,9.7351119,166.61,166.57,6.0]
[1641271941806,16.2261119,166.61,166.57,6.0]
[1641271942405,50.06613083,166.61,166.57,6.0]
[1641271943006,27.66479,166.59,166.57,6.0]
[1641271945108,9.73592411,166.58,166.57,6.0]
[1641271952511,12.73592411,166.58,166.51,4.23791218]
[1641271952710,3.0,166.57,166.51,4.23791218]
[1641271952909,27.66479,166.52,166.51,4.23791218]
[1641271953111,31.78879,166.52,166.51,4.23791218]
[1641271954214,44.50524491,166.52,166.48,4.23791218]
[1641271955314,44.50524491,166.52,166.47,4.23791218]
[1641271956213,4.23889756,166.48,166.47,4.23791218]
[1641271956415,10.89089756,166.48,166.47,4.23791218]
[1641271956816,6.652,166.48,166.47,4.23791218]
[1641271957016,6.652,166.48,166.43,3.0]
[1641271957915,31.78879,166.52,166.5,0.13040484]
[1641271958118,6.467,166.48,166.43,3.0]
[1641271959822,6.467,166.48,166.45,3.0]
[1641271960018,6.467,166.48,166.44,3.0]
[1641271960218,6.467,166.48,166.45,3.0]
[1641271961222,6.467,166.48,166.47,3.0]
[1641271961420,4.2052989,166.55,166.47,3.0]
[1641271961619,4.2052989,166.55,166.46,3.0]
[1641271962220,4.2052989,166.55,166.47,3.0]
[1641271962420,4.2052989,166.55,166.46,3.0]
[1641271962621,64.1142989,166.56,166.47,3.0]
[1641271963119,59.909,166.56,166.48,27.66479]
[1641271963321,59.909,166.56,166.48,30.66479]
[1641271963921,59.909,166.56,166.48,27.66479]
[1641271964723,59.909,166.56,166.48,30.66479]
[1641271964923,59.909,166.56,166.48,27.66479]
[1641271965824,64.1142989,166.56,166.48,27.66479]
[1641271966524,64.1142989,166.56,166.48,30.66479]
[1641271966823,4.2052989,166.51,166.5,4.23791218]
[1641271967825,4.2052989,166.51,166.49,1.58610777]
[1641271969125,4.2052989,166.51,166.5,4.23810079]
[1641271969927,2.65214063,166.52,166.5,4.23810079]
[1641271971030,6.612,166.53,166.5,4.23810079]
[1641271971229,4.22472143,166.52,166.48,31.90289079]
[1641271974834,10.83672143,166.53,166.48,31.90289079]
[1641271975535,4.22472143,166.52,166.48,27.66479]
[1641271977035,4.22472143,166.52,166.5,3.0]
[1641271977235,1e-08,166.52,166.5,7.383]
[1641271977436,12.71645491,166.57,166.5,7.383]
[1641271977837,12.71645491,166.57,166.5,4.383]
[1641271978240,12.71645491,166.57,166.5,128.0595544]
[1641271978539,15.32184289,166.59,166.5,128.0595544]
[1641271978741,15.32184289,166.59,166.5,131.0595544]
[1641271979240,15.32184289,166.59,166.52,27.66479]
[1641271979741,15.32184289,166.59,166.51,1.61906989]
[1641271979742,2.60538798,166.59,166.51,1.61906989]
[1641271979939,7.80738798,166.59,166.51,1.61906989]
[1641271980544,7.80738798,166.59,166.5,128.0595544]
[1641271980545,2.60538798,166.58,166.5,128.0595544]
[1641271980741,2.60538798,166.58,166.48,27.66479]
[1641271981040,30.27017798,166.58,166.48,27.66479]
[1641271981442,42.98663289,166.58,166.49,1.61894852]
[1641271982042,15.32184289,166.57,166.49,1.61894852]
[1641271982742,15.32184289,166.57,166.48,27.66479]
[1641271983345,15.32184289,166.57,166.48,30.66479]
[1641271984044,2.60538798,166.57,166.49,1.61900006]
[1641271986248,15.32184289,166.58,166.49,1.61900006]
[1641271986950,12.71645491,166.53,166.49,1.61900006]
[1641271987250,18.00145491,166.53,166.49,1.61900006]
[1641271988250,18.00145491,166.53,166.48,6.0]
[1641271988451,15.32184289,166.52,166.48,6.0]
[1641271990552,2.60538798,166.52,166.49,1.62400681]
[1641271994456,2.60538798,166.52,166.48,6.0]
[1641271998862,15.32184289,166.53,166.48,6.0]
[1641271999060,5.211,166.52,166.48,6.0]
[1641271999761,17.92745491,166.52,166.48,6.0]
[1641272000163,2.60538798,166.51,166.48,6.0]
[1641272000361,3.0,166.5,166.48,6.0]
[1641272000567,5.60538798,166.51,166.48,6.0]
[1641272000761,2.60538798,166.51,166.48,6.0]
[1641272000961,2.60538798,166.49,166.48,6.0]
[1641272001662,12.71645491,166.5,166.48,6.0]
[1641272003565,15.71645491,166.49,166.48,6.0]
[1641272003764,15.71645491,166.49,166.41,12.71334451]
[1641272003967,3.0,166.48,166.41,12.71334451]
[1641272004164,7.8,166.48,166.41,12.71334451]
[1641272004565,12.71645491,166.46,166.41,1.62370038]
[1641272005466,15.32184289,166.47,166.39,1.62370038]
[1641272005665,15.32184289,166.47,166.4,3.0]
[1641272006267,2.60538798,166.47,166.41,12.71334451]
[1641272006966,4.8,166.48,166.41,15.71334451]
[1641272007167,4.8,166.48,166.43,12.71334451]
[1641272007469,4.8,166.48,166.43,40.37813451]
[1641272007768,4.8,166.48,166.43,12.71334451]
[1641272008568,2.61552168,166.47,166.42,12.71334451]
[1641272009370,15.33197659,166.47,166.39,21.49364837]
[1641272009667,27.66479,166.46,166.39,21.49364837]
[1641272009867,27.66479,166.46,166.4,6.0]
[1641272010570,2.61552168,166.45,166.4,6.0]
[1641272011473,2.61552168,166.45,166.41,1.62370038]
[1641272012272,74.99725491,166.47,166.4,6.0]
[1641272012471,27.66479,166.49,166.4,6.0]
[1641272012972,3.0,166.44,166.4,6.0]
[1641272013172,9.392,166.44,166.4,6.0]
[1641272015671,6.392,166.44,166.4,6.0]
[1641272018275,33.78079,166.49,166.4,6.0]
[1641272018778,27.66479,166.49,166.4,6.0]
[1641272019678,30.66479,166.49,166.4,6.0]
[1641272019878,27.66479,166.49,166.4,6.0]
[1641272020279,30.66479,166.49,166.4,6.0]
[1641272020479,3.0,166.48,166.4,6.0]
[1641272020681,3.0,166.46,166.4,6.0]
[1641272020879,3.0,166.45,166.4,6.0]
[1641272021581,30.66479,166.45,166.4,6.0]
[1641272022382,3.0,166.44,166.4,6.0]
[1641272022582,4.657,166.44,166.4,6.0]
[1641272022982,7.657,166.44,166.4,6.0]
[1641272023682,4.657,166.44,166.4,6.0]
[1641272023883,27.66479,166.45,166.4,6.0]
[1641272024084,2.6167921,166.43,166.41,1.62365316]
[1641272024785,2.6167921,166.44,166.41,1.62365316]
[1641272027786,12.71645491,166.46,166.41,1.62365316]
[1641272028988,15.33324701,166.48,166.41,1.62365316]
[1641272029787,12.71645491,166.48,166.41,1.62365316]
[1641272030591,12.71645491,166.47,166.41,1.62365316]
[1641272030789,18.61645491,166.47,166.41,1.62365316]
[1641272031389,2.6167921,166.46,166.41,1.62365316]
[1641272032194,15.33324701,166.46,166.41,1.62365316]
[1641272035303,2.6167921,166.46,166.41,1.62365316]
[1641272037302,4.23860611,166.44,166.41,1.62365316]
[1641272045109,4.23860611,166.45,166.41,1.62365316]
[1641272045908,5.9,166.47,166.41,1.62365316]
[1641272046107,12.71645491,166.48,166.41,1.62365316]
[1641272046509,4.23972685,166.45,166.44,4.23972685]
[1641272046709,10.12972685,166.45,166.44,4.23972685]
[1641272047314,5.89,166.45,166.41,1.62365316]
[1641272047509,8.50593001,166.45,166.41,1.62365316]
[1641272048111,5.89,166.45,166.41,1.62365316]
[1641272048310,4.23997967,166.44,166.41,1.62365316]
[1641272050412,4.23997967,166.45,166.41,1.62365316]
[1641272051215,4.23997967,166.45,166.41,14.33699767]
[1641272052116,4.23997967,166.46,166.41,14.33699767]
[1641272052717,2.61604035,166.48,166.41,14.33699767]
[1641272052918,12.71645491,166.49,166.45,4.23959158]
[1641272053520,4.23958881,166.46,166.45,4.23959158]
[1641272054220,42.99700926,166.49,166.45,4.23959158]
[1641272055021,4.23962305,166.46,166.45,4.23959158]
[1641272055625,40.38124491,166.49,166.45,4.23959158]
[1641272056223,4.23961277,166.46,166.45,4.23959158]
[1641272056824,10.14661277,166.46,166.45,4.23959158]
[1641272057322,5.907,166.46,166.45,4.23959158]
[1641272057824,8.52280737,166.46,166.44,4.23959158]
[1641272058528,4.23962381,166.45,166.44,4.23959158]
[1641272059428,5.907,166.46,166.44,4.23959158]
[1641272060127,4.23962132,166.45,166.44,4.23959158]
[1641272060732,5.907,166.46,166.44,4.23959158]
[1641272061132,4.23963368,166.45,166.44,4.23959158]
[1641272062030,12.71645491,166.49,166.44,4.23959158]
[1641272062332,4.22769348,166.48,166.44,4.23959158]
[1641272062730,10.58969348,166.48,166.44,4.23959158]
[1641272062930,6.362,166.48,166.44,4.23959158]
[1641272063132,6.362,166.48,166.43,5.86324474]
[1641272063732,10.58962548,166.48,166.43,5.86324474]
[1641272064532,6.362,166.48,166.43,5.86324474]
[1641272064733,2.61548919,166.47,166.46,4.23959158]
[1641272065232,6.362,166.48,166.46,4.23959158]
[1641272067934,62.3964,166.5,166.46,4.23959158]
[1641272068133,30.66479,166.52,166.46,4.23959158]
[1641272069035,2.61543816,166.49,166.46,4.23959158]
[1641272069736,12.71795094,166.5,166.46,4.23959158]
[1641272070338,12.41631573,166.51,166.48,3.0]
[1641272070535,33.84001893,166.54,166.5,55.32958]
[1641272071337,62.7625,166.56,166.5,55.32958]
[1641272071538,62.7625,166.56,166.5,27.66479]
[1641272072035,62.7625,166.56,166.53,4.23805487]
[1641272072236,3.0,166.57,166.53,4.23805487]
[1641272072435,3.0,166.56,166.53,4.23805487]
[1641272072636,30.66479,166.56,166.53,4.23805487]
[1641272073239,30.66479,166.56,166.51,4.23805487]
[1641272075140,30.66479,166.56,166.51,10.23805487]
[1641272075339,27.66479,166.56,166.51,10.23805487]
[1641272076743,33.84001893,166.59,166.51,10.23805487]
[1641272076744,61.50480893,166.59,166.51,10.23805487]
[1641272076943,27.66479,166.59,166.53,4.23805487]
[1641272077641,27.66479,166.59,166.54,4.23805487]
[1641272078243,27.66479,166.59,166.55,4.23805487]
[1641272079245,27.66479,166.59,166.54,4.23805487]
[1641272079643,27.66479,166.59,166.55,4.23805487]
[1641272082547,65.2382,166.6,166.55,4.23805487]
[1641272082848,65.2382,166.6,166.55,9.02805487]
[1641272083248,27.66479,166.62,166.55,9.02805487]
[1641272083648,33.84001893,166.63,166.55,9.02805487]
[1641272084749,96.81371893,166.65,166.57,4.23805487]
[1641272084948,93.81371893,166.65,166.57,4.23805487]
[1641272085147,96.81371893,166.65,166.57,4.23805487]
[1641272085352,93.81371893,166.65,166.57,4.23805487]
[1641272086049,59.9737,166.65,166.58,4.23805487]
[1641272086848,59.9737,166.65,166.55,27.66479]
[1641272087051,59.9737,166.65,166.55,55.32958]
[1641272090152,62.9737,166.65,166.55,27.66479]
[1641272090754,3.0,166.64,166.55,27.66479]
[1641272091154,59.9737,166.65,166.55,27.66479]
[1641272091554,59.9737,166.65,166.58,4.23805487]
[1641272091555,9.18844554,166.64,166.58,4.23805487]
[1641272093854,9.18844554,166.64,166.58,7.23805487]
[1641272094457,59.9737,166.65,166.6,4.23805487]
[1641272096558,27.66479,166.66,166.6,4.23805487]
[1641272096959,27.66479,166.66,166.61,4.23805487]
[1641272098161,3.0,166.64,166.61,4.23805487]
[1641272098360,7.247,166.64,166.54,62.1441]
[1641272098561,60.3059,166.63,166.53,33.84001893]
[1641272099260,9.29310141,166.62,166.53,27.66479]
[1641272100964,12.71144133,166.61,166.53,40.37623133]
[1641272101766,12.71144133,166.6,166.53,27.66479]
[1641272103266,12.71144133,166.6,166.52,12.71144133]
[1641272103667,12.71144133,166.61,166.53,12.71144133]
[1641272103869,12.71144133,166.61,166.53,17.99744133]
[1641272104167,12.71144133,166.59,166.53,5.286]
[1641272105167,12.71144133,166.59,166.53,11.286]
[1641272105369,12.71144133,166.59,166.54,27.66479]
[1641272105568,12.71144133,166.6,166.54,27.66479]
[1641272106170,9.29310141,166.62,166.54,27.66479]
[1641272106171,12.71144133,166.62,166.54,40.37623133]
[1641272106367,12.71144133,166.62,166.54,43.37623133]
[1641272106568,12.71144133,166.62,166.55,3.0]
[1641272107668,12.71144133,166.62,166.54,40.37623133]
[1641272107869,12.70998945,166.63,166.55,20.36865388]
[1641272108467,12.70998945,166.63,166.55,25.77765388]
[1641272108668,12.70998945,166.63,166.55,28.77765388]
[1641272109470,12.70998945,166.63,166.59,27.66479]
[1641272110070,12.70998945,166.62,166.59,27.66479]
[1641272110771,43.13312034,166.66,166.59,27.66479]
[1641272111076,12.70856158,166.63,166.59,27.66479]
[1641272111776,12.70851138,166.64,166.59,27.66479]
[1641272111976,12.70851138,166.64,166.57,65.4767]
[1641272112275,12.70851138,166.64,166.56,12.71144133]
[1641272112475,12.70851138,166.62,166.58,1.81214706]
[1641272113176,12.70851138,166.61,166.56,1.81214706]
[1641272113478,12.70851138,166.61,166.56,4.81214706]
[1641272113677,12.70851138,166.61,166.57,3.0]
[1641272113879,12.70851138,166.62,166.58,3.0]
[1641272114278,45.55709471,166.66,166.61,3.0]
[1641272114479,45.55709471,166.66,166.61,9.563]
[1641272114678,45.55709471,166.66,166.61,6.563]
[1641272114878,43.13312034,166.66,166.61,6.563]
[1641272115079,11.71707578,166.67,166.61,6.563]
[1641272115880,2.42397437,166.66,166.62,1.92656021]
[1641272116678,2.3097668,166.65,166.59,1.92656021]
[1641272117483,29.9745568,166.65,166.59,1.92656021]
[1641272117888,32.9745568,166.65,166.59,1.92656021]
[1641272118083,30.66479,166.65,166.59,1.92656021]
[1641272118382,27.66479,166.65,166.59,1.92656021]
[1641272118581,11.60286821,166.64,166.56,1.92656021]
[1641272119382,2.3097668,166.64,166.56,1.92656021]
[1641272119582,2.3097668,166.63,166.56,12.88845074]
[1641272120184,2.30969126,166.64,166.57,1.92656021]
[1641272120784,2.30969126,166.64,166.57,4.92656021]
[1641272121084,27.66479,166.65,166.57,4.92656021]
[1641272121385,27.66479,166.65,166.58,3.0]
[1641272121689,64.1714,166.67,166.59,3.0]
[1641272121884,2.3094417,166.64,166.59,1.92656021]
[1641272122484,11.29245998,166.66,166.58,9.88845074]
[1641272123389,2.30954517,166.66,166.58,9.88845074]
[1641272124690,2.30954517,166.66,166.57,1.92656021]
[1641272124691,11.29322887,166.66,166.57,1.92656021]
[1641272124889,15.56122887,166.66,166.57,1.92656021]
[1641272125290,2.30954517,166.65,166.57,1.92656021]
[1641272125490,27.66479,166.64,166.57,1.92656021]
[1641272125990,2.30954517,166.63,166.57,1.92656021]
[1641272126797,5.30954517,166.63,166.57,1.92656021]
[1641272126992,3.0,166.62,166.57,1.92656021]
[1641272127193,9.693,166.62,166.57,1.92656021]
[1641272127392,6.693,166.62,166.57,1.92656021]
[1641272127593,27.66479,166.61,166.57,1.92656021]
[1641272128193,2.31080462,166.61,166.55,3.0]
[1641272129395,2.31080462,166.61,166.54,70.13676021]
[1641272129595,2.31080462,166.61,166.55,27.66479]
[1641272129797,2.31080462,166.62,166.56,1.92656021]
[1641272130396,60.3648,166.63,166.56,1.92656021]
[1641272131198,2.31031426,166.62,166.56,1.92656021]